bitfinex/quotes_ETHUSD_20250114
["timestamp","ask_amount","ask_price","bid_price","bid_amount"]
[1736857460482,0.25,3189.4,3189.2,0.7802]
[1736857460640,3.13548,3189.3,3189.2,0.7802]
[1736857460843,0.25,3188.6,3188.2,0.7802]
[1736857461380,0.25,3188.4,3188.2,0.7802]
[1736857461596,0.25,3188.4,3188.1,0.005]
[1736857461597,0.25,3188.2,3188.1,0.005]
[1736857463093,0.25,3188.2,3188.1,0.0489227]
[1736857463298,0.25,3188.7,3188.1,0.005]
[1736857463589,2.92509639,3188.9,3188.1,0.0489227]
[1736857463794,2.92509639,3188.9,3188.1,0.005]
[1736857463955,0.01677583,3188.8,3188.2,0.04380021]
[1736857464310,3.13605,3188.8,3188.2,0.04380021]
[1736857464454,0.01677583,3188.7,3188.2,0.04380021]
[1736857464649,3.13605,3188.8,3188.1,0.005]
[1736857464854,0.01677583,3188.7,3188.2,0.04380021]
[1736857465568,3.13571,3189.1,3188.2,0.04380021]
[1736857465720,3.13571,3189.1,3188.3,0.7802]
[1736857465872,3.13588,3188.9,3188.3,0.7802]
[1736857466078,3.13608,3188.7,3188.4,0.04355524]
[1736857466504,0.01677583,3189.0,3188.3,0.7802]
[1736857466711,3.13599,3188.8,3188.3,0.7802]
[1736857467108,0.01677583,3189.2,3188.4,0.04355524]
[1736857467312,0.63238947,3189.2,3188.4,0.04355524]
[1736857467476,3.13568,3189.1,3188.4,0.04355524]
[1736857467681,0.63238947,3189.2,3188.4,0.04355524]
[1736857467682,3.13587,3188.9,3188.4,0.04355524]
[1736857467888,3.13597,3188.8,3188.4,0.04355524]
[1736857468304,3.13597,3188.8,3188.3,0.7802]
[1736857468689,3.13597,3188.8,3188.4,0.04401075]
[1736857469094,3.449567,3188.8,3188.3,0.7802]
[1736857469504,3.13597,3188.8,3188.4,0.04405566]
[1736857469707,3.0,3189.3,3188.4,0.04405566]
[1736857469929,3.13591,3188.9,3188.4,0.04405566]
[1736857470305,0.01677583,3189.2,3188.4,0.04405566]
[1736857470505,3.13589,3188.9,3188.4,0.04405566]
[1736857470708,3.13589,3188.9,3188.3,0.7802]
[1736857471025,0.01677583,3188.8,3188.4,0.04404925]
[1736857471251,3.01677583,3189.1,3188.4,0.04404925]
[1736857471464,3.13656,3188.2,3188.1,0.005]
[1736857471615,6.13656,3188.2,3188.1,0.005]
[1736857471804,6.70333583,3188.2,3188.1,0.005]
[1736857472143,3.1368,3188.0,3187.1,4.41119797]
[1736857472309,3.13658,3188.2,3187.2,0.47249263]
[1736857472623,3.13676,3188.0,3187.2,0.52465311]
[1736857472828,3.13676,3188.0,3187.2,0.49328028]
[1736857473229,3.13687,3187.9,3187.2,0.49328028]
[1736857473429,3.13707,3187.7,3187.2,0.05216048]
[1736857473630,0.01677583,3188.0,3187.2,0.05216048]
[1736857473830,3.13734,3187.5,3187.1,4.41119797]
[1736857474027,3.15411583,3187.5,3187.1,4.41119797]
[1736857474209,3.13734,3187.5,3187.2,0.0466641]
[1736857474834,3.13734,3187.5,3187.1,4.41119797]
[1736857475036,3.13734,3187.5,3187.2,0.04678524]
[1736857475329,3.15374583,3187.8,3187.2,0.04678524]
[1736857476035,3.13708,3187.7,3187.2,0.04678524]
[1736857476329,3.13708,3187.7,3187.1,4.41119797]
[1736857476330,3.13755,3187.2,3187.1,3.60349797]
[1736857476496,0.01677583,3187.6,3187.1,3.60349797]
[1736857476497,3.15415583,3187.4,3187.1,3.60349797]
[1736857476696,3.13738,3187.4,3187.1,3.60349797]
[1736857476910,3.13704,3187.8,3187.1,3.60349797]
[1736857477120,3.13695,3187.8,3187.2,0.03137446]
[1736857477308,0.01677583,3187.7,3187.1,3.96384777]
[1736857477514,3.13711,3187.7,3187.1,3.96384777]
[1736857477709,3.13711,3187.7,3187.1,3.60349797]
[1736857478406,3.13718,3187.6,3187.1,3.60349797]
[1736857479404,0.01677583,3187.5,3187.1,3.60349797]
[1736857479605,3.13746,3187.3,3187.1,3.60349797]
[1736857479805,3.95122,3188.5,3187.1,3.60349797]
[1736857479806,3.13637,3188.4,3187.4,3.13733]
[1736857480034,3.15295583,3188.6,3187.5,3.13717]
[1736857480209,3.15295583,3188.6,3187.4,0.8077]
[1736857480410,0.01677583,3188.6,3187.4,3.94496]
[1736857480623,0.01677583,3188.8,3187.4,0.8077]
[1736857480935,3.13734,3187.5,3187.1,3.60349797]
[1736857481139,4.01417289,3187.9,3187.1,3.60349797]
[1736857481140,0.313734,3187.4,3187.1,3.60349797]
[1736857481319,3.13715,3187.6,3187.2,0.8077]
[1736857481520,3.13715,3187.6,3187.2,0.7077]
[1736857481718,3.0,3188.1,3187.2,0.7077]
[1736857482039,3.0,3188.3,3187.2,0.73907301]
[1736857482248,3.13654,3188.3,3187.2,3.87660301]
[1736857482542,3.13667,3188.1,3187.3,0.7480101]
[1736857482713,3.13667,3188.1,3187.4,0.03136883]
[1736857483114,3.13617,3188.6,3187.4,0.03136883]
[1736857483308,3.13651,3188.3,3187.4,0.03136883]
[1736857483708,3.13631,3188.5,3187.6,3.13715]
[1736857483927,3.13631,3188.5,3187.7,0.34508019]
[1736857484145,3.13631,3188.5,3187.7,0.03136519]
[1736857484555,3.13631,3188.5,3187.8,0.8077]
[1736857484763,3.13755,3187.2,3187.1,3.60349797]
[1736857484923,7.90010376,3187.2,3187.1,3.12490839]
[1736857485109,12.96956312,3187.2,3187.1,3.12490839]
[1736857485434,11.76500949,3187.2,3187.1,3.12490839]
[1736857485752,12.32250949,3187.2,3187.1,3.12490839]
[1736857486340,12.32250949,3187.2,3187.1,8.39e-06]
[1736857486721,15.95640825,3187.2,3187.1,8.39e-06]
[1736857486941,16.83501742,3187.2,3187.1,8.39e-06]
[1736857487143,13.20111866,3187.2,3187.1,8.39e-06]
[1736857487351,13.58812369,3187.2,3187.1,8.39e-06]
[1736857487852,12.72321796,3187.2,3187.1,8.39e-06]
[1736857488281,11.84460879,3187.2,3187.1,8.39e-06]
[1736857488753,7.51083,3186.3,3186.2,0.1670706]
[1736857488977,12.17605986,3186.3,3186.2,0.1670706]
[1736857489520,12.17605986,3186.3,3186.2,6e-07]
[1736857490258,11.35365986,3186.3,3186.2,6e-07]
[1736857490458,10.15933379,3186.3,3186.2,6e-07]
[1736857491127,7.15933379,3186.3,3186.2,6e-07]
[1736857491327,3.13843,3186.3,3186.2,6e-07]
[1736857491760,3.1776662,3186.3,3186.2,6e-07]
[1736857492561,4.02090379,3186.7,3186.2,6e-07]
[1736857492762,0.03923394,3186.6,3186.2,6e-07]
[1736857492956,3.17738394,3186.6,3186.2,6e-07]
[1736857493162,0.03923394,3186.6,3186.3,0.8077]
[1736857493658,3.13805,3186.7,3186.3,0.8077]
[1736857493827,0.03923014,3187.0,3186.3,0.8077]
[1736857494648,3.13784,3186.9,3186.3,0.8077]
[1736857494843,3.17725804,3186.8,3186.3,0.8077]
[1736857495241,0.3177258,3186.7,3186.2,6e-07]
[1736857495448,0.03923386,3186.6,3186.2,6e-07]
[1736857495659,3.13843,3186.3,3186.2,6e-07]
[1736857497073,3.13843,3186.3,3185.6,3.72026021]
[1736857497074,3.13902,3185.7,3185.6,3.72026021]
[1736857497549,3.17826276,3185.7,3185.6,3.72026021]
[1736857497744,3.81861803,3185.7,3185.6,3.72026021]
[1736857498274,3.77937527,3185.7,3185.6,3.72026021]
[1736857499239,3.81861814,3185.7,3185.6,3.72026021]
[1736857499941,4.36861814,3185.7,3185.6,3.72026021]
[1736857500165,3.77937527,3185.7,3185.6,3.72026021]
[1736857500681,3.81861825,3185.7,3185.6,3.72026021]
[1736857501046,3.77937527,3185.7,3185.6,3.72026021]
[1736857501260,4.60131905,3185.7,3185.6,2.15070021]
[1736857501454,3.81862052,3185.7,3185.6,2.15070021]
[1736857501653,3.17826525,3185.7,3185.6,2.15070021]
[1736857502081,3.13902,3185.7,3185.6,2.15070021]
[1736857502478,3.17826148,3185.7,3185.6,2.15070021]
[1736857502661,3.13902,3185.7,3185.6,2.15070021]
[1736857502860,4.02090379,3186.3,3185.7,0.7656]
[1736857503096,3.1387,3186.1,3185.7,0.7656]
[1736857503306,3.13846,3186.3,3185.7,1.05723002]
[1736857503476,3.17778572,3186.2,3185.7,1.05723002]
[1736857503873,3.17778572,3186.2,3185.7,0.40723002]
[1736857504398,0.03923572,3186.2,3185.7,0.40723002]
[1736857504592,0.03923377,3186.3,3185.7,0.40723002]
[1736857505181,0.03923377,3186.3,3185.8,0.25579302]
[1736857506121,3.0,3187.1,3185.8,0.25579302]
[1736857506122,4.02090379,3187.3,3185.9,0.03032562]
[1736857506280,3.13778,3187.0,3186.0,3.13864]
[1736857506475,3.13759,3187.2,3186.1,0.03031274]
[1736857506803,3.13717,3187.6,3186.1,0.03031274]
[1736857507004,4.02090379,3187.7,3186.1,0.03031274]
[1736857507005,3.1376,3187.2,3186.2,0.7578]
[1736857507211,0.03922422,3187.1,3186.2,0.7578]
[1736857507502,3.1376,3187.2,3186.3,0.03030744]
[1736857508007,0.03922423,3187.1,3186.2,3.92661746]
[1736857508415,0.03922424,3187.4,3186.4,3.13828]
[1736857508710,3.13748,3187.3,3186.6,0.7578]
[1736857508907,3.13728,3187.5,3186.6,0.78810256]
[1736857509110,4.02090379,3187.7,3186.7,3.13803]
[1736857509111,3.1371,3187.7,3186.7,3.13803]
[1736857509274,3.1371,3187.7,3186.8,0.03030074]
[1736857509606,3.13685,3188.0,3186.9,3.89562]
[1736857509805,3.13685,3188.0,3187.0,4.31839054]
[1736857510007,3.13685,3188.0,3187.1,3.13764]
[1736857510179,0.03921453,3187.9,3187.1,3.13764]
[1736857510611,0.03921453,3187.9,3187.0,1.15039207]
[1736857511209,3.63579798,3187.8,3187.0,1.15039207]
[1736857511433,3.13717,3187.6,3187.0,0.7578]
[1736857511627,0.03921715,3187.7,3187.0,0.7578]
[1736857511918,3.13733,3187.5,3187.0,0.7578]
[1736857512133,0.03921878,3187.4,3187.0,0.7578]
[1736857513112,3.67501676,3187.4,3187.0,0.7578]
[1736857513326,3.50497168,3187.3,3187.0,0.7578]
[1736857513544,0.03922188,3187.2,3187.0,0.7578]
[1736857514614,6.77314798,3187.4,3187.0,0.7578]
[1736857514615,3.17675189,3187.3,3187.0,0.7578]
[1736857515327,3.13764,3187.1,3187.0,0.7578]
[1736857515525,2.63764,3187.1,3187.0,0.7578]
[1736857515722,6.77274798,3187.8,3187.0,0.7578]
[1736857515923,0.25,3189.1,3187.0,0.7578]
[1736857515924,3.63579798,3188.0,3187.0,0.7578]
[1736857516124,3.13708,3187.7,3187.0,0.7578]
[1736857516728,3.63579798,3188.0,3187.0,0.7578]
[1736857516729,3.13718,3187.6,3187.0,0.7578]
[1736857516937,0.03921883,3187.5,3187.0,0.7578]
[1736857517555,3.13718,3187.6,3187.0,0.7578]
[1736857518459,3.17610883,3187.9,3187.0,3.89553]
[1736857518621,3.17610883,3187.9,3187.0,4.285083]
[1736857518820,0.03921883,3187.9,3187.1,3.13756]
[1736857519020,0.03921883,3187.9,3187.2,3.91943]
[1736857519248,3.63579798,3188.4,3187.3,0.03028711]
[1736857519556,3.63579798,3188.8,3187.5,0.7819]
[1736857519728,3.63579798,3188.8,3187.3,3.16773711]
[1736857519729,0.3635798,3188.7,3187.9,0.7819]
[1736857519938,0.3635798,3188.7,3187.9,3.91872]
[1736857520672,0.03920574,3188.6,3187.9,3.91872]
[1736857520970,0.3635798,3188.7,3187.9,3.91872]
[1736857521357,3.13579,3189.0,3188.0,0.03026803]
[1736857521648,3.13579,3189.0,3188.2,0.7819]
[1736857521849,3.63579798,3189.1,3188.2,0.8121651]
[1736857522016,3.63579798,3189.1,3188.2,3.9487151]
[1736857522223,6.77149798,3189.1,3188.2,3.9487151]
[1736857522532,6.77149798,3189.1,3188.2,0.7819]
[1736857522533,3.17505237,3189.0,3188.2,0.7819]
[1736857522730,3.17505237,3189.0,3188.2,0.81216394]
[1736857522731,3.13585,3189.0,3188.2,0.81216394]
[1736857522949,3.63579798,3189.1,3188.2,0.81216394]
[1736857523370,0.7844,3189.6,3187.7,3.13701]
[1736857523371,6.77121798,3189.4,3188.5,0.7819]
[1736857523520,6.77121798,3189.4,3188.5,3.94840552]
[1736857523854,3.63579798,3189.4,3188.5,0.81215552]
[1736857524057,0.03919789,3189.3,3188.5,0.81215552]
[1736857524257,0.03919535,3189.7,3188.8,0.7574]
[1736857524453,3.17429535,3189.7,3188.8,0.7574]
[1736857525796,3.17429535,3189.7,3188.8,3.89336]
[1736857525960,3.49172488,3189.7,3188.8,3.89336]
[1736857526696,3.13521,3189.6,3188.8,0.7574]
[1736857526997,0.03919426,3189.5,3188.8,0.7574]
[1736857528264,0.03919426,3189.5,3188.0,0.7574]
[1736857528265,3.63579798,3188.9,3188.0,0.7574]
[1736857528463,0.03920151,3188.8,3188.0,0.7574]
[1736857528661,0.36749995,3188.7,3188.0,0.7574]
[1736857528886,3.13655,3188.3,3188.0,0.7574]
[1736857529189,3.67500761,3188.2,3187.1,3.89503]
[1736857529366,3.13696,3187.8,3187.1,0.7574]
[1736857529694,6.81161761,3188.2,3187.1,0.7574]
[1736857529695,3.13715,3187.6,3187.1,0.7574]
[1736857529895,3.99265191,3187.5,3187.1,0.7574]
[1736857530116,3.13775,3187.0,3186.4,0.7888]
[1736857530325,3.17708607,3186.9,3186.4,0.7888]
[1736857531722,0.03922858,3186.8,3186.1,0.05]
[1736857531866,3.13816,3186.6,3186.1,0.05]
[1736857532066,3.17748337,3186.5,3186.1,0.05]
[1736857532807,0.03923337,3186.5,3186.1,0.05]
[1736857533104,1.3288,3187.1,3186.2,0.7888]
[1736857533105,0.03923152,3186.6,3186.2,0.7888]
[1736857533333,3.13749,3187.3,3186.2,0.7888]
[1736857533334,1.09643643,3187.5,3186.2,0.7888]
[1736857533529,3.1376,3187.2,3186.3,0.03031158]
[1736857533825,0.03922648,3187.1,3186.2,3.92731]
[1736857534028,0.03922648,3187.1,3186.3,3.536131]
[1736857534325,0.03922385,3187.4,3186.3,3.536131]
[1736857534491,3.1372,3187.6,3186.6,3.13813]
[1736857534691,3.13699,3187.8,3186.7,3.13801]
[1736857534901,3.13699,3187.8,3186.8,0.34712951]
[1736857535203,3.13707,3187.7,3186.6,3.16840701]
[1736857535521,3.13707,3187.7,3186.6,0.03029701]
[1736857535719,3.13648,3188.3,3187.0,0.7888]
[1736857535922,3.13648,3188.3,3187.0,0.81909284]
[1736857536109,3.13699,3187.8,3187.0,1.18449228]
[1736857536292,0.03921777,3187.7,3187.0,0.7888]
[1736857537827,3.17627777,3187.7,3187.0,0.7888]
[1736857538988,3.17627777,3187.7,3183.9,1.9115795]
[1736857538989,3.13762,3187.2,3186.2,0.7888]
[1736857539324,3.13786,3186.9,3186.2,0.7888]
[1736857539892,0.03456863,3186.8,3186.2,0.7888]
[1736857540093,3.13811,3186.7,3186.2,0.7888]
[1736857540422,0.03456863,3186.6,3186.2,0.7888]
[1736857540627,0.03456863,3186.8,3186.2,0.7888]
[1736857541057,3.13768,3187.1,3186.2,0.7888]
[1736857541358,0.3,3187.3,3186.3,3.16978116]
[1736857541359,3.4375,3187.3,3186.3,3.16978116]
[1736857541558,3.1375,3187.3,3186.4,3.53417812]
[1736857541759,3.13688,3187.9,3186.8,3.1379]
[1736857541963,0.7788,3188.0,3186.4,3.53413812]
[1736857541964,3.13669,3188.1,3186.9,0.03137548]
[1736857542163,0.03456863,3188.3,3187.0,0.7888]
[1736857542325,3.03456863,3188.6,3187.1,0.39579755]
[1736857542530,3.13627,3188.5,3187.2,3.13746]
[1736857542729,3.17073863,3188.6,3187.4,0.7888]
[1736857542730,0.03456863,3188.4,3187.4,0.7888]
[1736857542970,0.03456863,3188.4,3186.6,0.7888]
[1736857542971,3.13727,3187.5,3186.6,0.7888]
[1736857543127,0.03456863,3187.4,3186.6,3.92693]
[1736857543333,0.03456863,3187.4,3186.6,0.7888]
[1736857543556,3.13704,3187.8,3186.8,3.13793]
[1736857543871,0.03456863,3187.7,3186.8,3.13793]
[1736857544034,0.03456863,3187.7,3187.0,0.7888]
[1736857544235,0.03456863,3187.7,3187.1,0.37555588]
[1736857544433,0.03456863,3187.7,3187.0,0.7888]
[1736857545663,0.03456863,3187.7,3187.0,3.92654]
[1736857545965,0.03456863,3187.9,3187.0,0.7888]
[1736857546269,3.1368,3188.0,3187.0,3.92649]
[1736857546428,0.03456863,3187.9,3187.1,0.392649]
[1736857546634,3.17143863,3187.9,3187.1,0.392649]
[1736857546835,0.03456863,3187.9,3187.0,0.7888]
[1736857547036,3.13714,3187.7,3187.0,0.7888]
[1736857547271,3.17173863,3187.6,3187.0,0.7888]
[1736857548071,3.13741,3187.4,3186.5,0.7912]
[1736857548234,3.17202863,3187.3,3186.5,0.7912]
[1736857548441,3.17202863,3187.3,3186.5,1.215506]
[1736857548636,0.03456863,3187.3,3186.5,1.215506]
[1736857548873,0.03456863,3187.4,3186.8,0.7912]
[1736857549045,3.13745,3187.3,3186.8,0.7912]
[1736857549375,0.03456863,3187.2,3186.8,0.7912]
[1736857549568,3.17193863,3187.4,3186.8,0.7912]
[1736857550067,3.13746,3187.3,3186.8,0.7912]
[1736857550269,0.03456863,3187.2,3186.8,0.7912]
[1736857550468,3.13709,3187.7,3186.8,0.7912]
[1736857550469,3.13686,3187.9,3186.8,0.7912]
[1736857550773,3.13708,3187.7,3186.8,3.92913]
[1736857550982,0.42565463,3187.8,3186.9,3.13781]
[1736857550983,0.03456863,3187.6,3186.9,3.13781]
[1736857551684,0.774,3188.0,3187.1,3.13755]
[1736857551685,3.13679,3188.0,3187.1,3.13755]
[1736857551989,0.03456863,3187.9,3187.2,3.13754]
[1736857552184,3.13662,3188.2,3187.2,3.13754]
[1736857552372,0.35168749,3188.1,3187.2,3.13754]
[1736857552576,0.03456863,3188.1,3187.3,3.13743]
[1736857552774,0.15782525,3188.8,3187.3,3.13743]
[1736857552775,0.774,3188.8,3187.5,3.13718]
[1736857552981,3.17063863,3188.7,3187.4,0.7912]
[1736857553157,0.39446386,3188.6,3187.4,3.92852]
[1736857553487,3.13656,3188.2,3187.4,0.7912]
[1736857553791,0.03456863,3188.1,3187.4,0.7912]
[1736857554088,3.13647,3188.3,3187.4,0.7912]
[1736857554263,0.03456863,3188.2,3187.4,0.7912]
[1736857554469,3.13632,3188.5,3187.5,3.16852886]
[1736857554769,0.03456863,3188.4,3187.6,3.13715]
[1736857555282,3.17093863,3188.4,3187.6,3.13715]
[1736857555868,3.17093863,3188.4,3187.4,1.184059]
[1736857556193,3.17093863,3188.4,3187.4,0.7912]
[1736857556364,3.17093863,3188.4,3187.5,0.03136688]
[1736857556696,3.17093863,3188.4,3187.5,3.16859688]
[1736857557271,3.13686,3187.9,3187.4,0.7912]
[1736857557471,6.77165472,3188.3,3187.0,0.7912]
[1736857557472,3.13722,3187.6,3187.0,0.7912]
[1736857557670,3.13722,3187.6,3186.7,3.13796]
[1736857557671,3.13776,3187.0,3186.7,0.7912]
[1736857557866,3.17242863,3186.9,3186.2,0.7912]
[1736857558701,0.03456863,3186.9,3186.2,0.7912]
[1736857558866,0.03456863,3187.0,3186.2,0.7912]
[1736857559271,3.17233863,3187.0,3186.2,0.7912]
[1736857560376,0.03456863,3187.0,3186.2,0.82257959]
[1736857560575,3.13758,3187.2,3186.2,0.82257959]
[1736857560768,3.13736,3187.4,3186.2,0.82257959]
[1736857560964,3.13722,3187.6,3186.2,0.82257959]
[1736857561277,3.13722,3187.6,3186.3,3.13843]
[1736857561481,3.17185863,3187.5,3186.4,0.03137643]
[1736857561663,0.03456863,3187.5,3186.7,3.13803]
[1736857561870,0.8303,3187.8,3186.7,3.13803]
[1736857561871,3.13719,3187.6,3186.8,0.8051]
[1736857562311,3.9673,3187.8,3186.8,3.94301]
[1736857562523,3.13678,3188.0,3187.0,3.13774]
[1736857562733,3.13678,3188.0,3187.1,3.1690121]
[1736857563029,0.03456863,3187.9,3187.0,0.0313721]
[1736857563171,0.03456863,3187.9,3187.0,3.56650531]
[1736857563421,0.03456863,3187.9,3187.0,0.42879531]
[1736857563761,3.13658,3188.2,3187.4,3.94244]
[1736857563911,3.13658,3188.2,3187.4,3.9738089]
[1736857564111,0.03456863,3188.1,3187.4,4.33982089]
[1736857564664,3.13644,3188.4,3187.4,4.37118984]
[1736857564855,3.13644,3188.4,3187.5,3.13725]
[1736857565057,0.8303,3188.6,3187.6,0.03136746]
[1736857565208,3.96648,3188.6,3187.6,3.16845746]
[1736857565409,3.13604,3188.8,3187.8,3.13694]
[1736857566167,3.13582,3189.0,3188.0,3.13676]
[1736857566344,0.03456863,3188.9,3187.9,0.8051]
[1736857566531,0.03456863,3189.2,3188.3,3.13646]
[1736857566712,0.03456863,3189.2,3188.3,3.450106]
[1736857567122,0.03456863,3189.2,3188.4,3.16767989]
[1736857567328,0.03456863,3189.2,3188.5,0.8051]
[1736857567539,0.03456863,3189.4,3188.5,0.8051]
[1736857567824,0.03456863,3189.4,3188.6,3.13617]
[1736857568024,0.03456863,3189.4,3188.6,0.39726281]
[1736857568268,3.16996863,3189.4,3188.5,0.8051]
[1736857568579,3.16996863,3189.4,3188.5,3.94135]
[1736857568870,3.16996863,3189.4,3186.9,0.18375491]
[1736857568871,0.8303,3188.8,3187.8,0.8051]
[1736857569075,3.13618,3188.6,3187.8,0.8051]
[1736857569270,0.03456863,3188.5,3187.8,0.8051]
[1736857569429,0.03456863,3188.5,3187.8,1.199314]
[1736857569771,3.17065863,3188.7,3187.8,1.199314]
[1736857569967,0.03456863,3188.7,3187.8,1.199314]
[1736857570274,3.13644,3188.4,3187.4,0.8051]
[1736857570424,0.03456863,3188.3,3187.4,3.94244]
[1736857570624,0.03456863,3188.3,3187.4,0.8051]
[1736857570898,0.03456863,3188.3,3187.5,3.13721]
[1736857571526,0.03456863,3188.3,3187.5,0.03136699]
[1736857571868,0.03456863,3188.7,3187.7,3.13696]
[1736857572076,0.03456863,3188.7,3187.8,0.313696]
[1736857572628,3.0,3189.4,3187.8,0.313696]
[1736857572629,0.8303,3189.2,3187.9,0.83646503]
[1736857572859,3.1354,3189.4,3188.4,3.13635]
[1736857573053,0.03456863,3189.3,3188.1,3.13663]
[1736857573269,3.13577,3189.0,3188.1,3.13663]
[1736857573576,0.03456863,3188.9,3187.9,3.9419]
[1736857573782,3.13586,3189.0,3188.0,0.39419]
[1736857574083,3.17047863,3188.9,3188.0,0.39419]
[1736857574381,0.03456863,3188.9,3188.0,0.39419]
[1736857574547,0.03456863,3189.1,3188.0,0.03136227]
[1736857574755,0.03456863,3189.1,3188.3,3.13641]
[1736857575387,3.17024863,3189.1,3188.1,3.13663]
[1736857575794,3.17024863,3189.1,3188.2,3.13653]
[1736857576439,0.03456863,3189.1,3188.5,3.13626]
[1736857576776,3.16997863,3189.4,3188.5,3.45302201]
[1736857576961,4.46546472,3189.6,3188.5,3.45302201]
[1736857576962,0.03456863,3189.3,3188.7,3.13607]
[1736857577178,0.03456863,3189.5,3188.5,3.48435029]
[1736857577375,0.03456863,3189.5,3188.5,0.34812029]
[1736857577574,0.03456863,3189.5,3188.7,3.13606]
[1736857577771,0.03456863,3189.5,3188.8,0.313606]
[1736857578077,3.96552,3189.6,3188.8,0.313606]
[1736857578078,0.8303,3189.6,3188.8,3.449506]
[1736857579374,0.8303,3189.6,3188.9,3.16720525]
[1736857579551,0.8303,3189.6,3188.9,0.03135525]
[1736857579746,0.7563,3189.9,3188.9,3.16719525]
[1736857579953,0.7563,3189.9,3189.0,0.34808012]
[1736857580476,0.03456863,3189.8,3189.0,0.37943455]
[1736857580673,0.03456863,3189.8,3188.5,0.31676201]
[1736857580674,0.03456863,3189.8,3189.1,3.9508]
[1736857581035,0.7563,3189.9,3189.1,3.9508]
[1736857581368,0.7563,3189.9,3189.2,3.13554]
[1736857581775,0.7563,3189.9,3189.3,0.03135158]
[1736857581996,0.7563,3189.9,3189.2,3.13554]
[1736857582223,0.7563,3189.9,3189.3,0.395074]
[1736857582504,0.03456863,3190.0,3189.3,0.395074]
[1736857583077,3.8909,3190.2,3189.3,0.395074]
[1736857583405,0.7563,3190.2,3189.4,0.03135012]
[1736857583606,0.7563,3190.2,3189.4,3.16664012]
[1736857583796,0.7563,3190.2,3189.4,3.13529]
[1736857583995,0.79086863,3190.2,3189.4,3.13529]
[1736857584502,0.79086863,3190.2,3189.1,3.95083]
[1736857584808,0.79086863,3190.2,3189.4,3.13531]
[1736857584993,0.7563,3190.2,3189.5,3.13527]
[1736857585303,3.13441,3190.4,3188.6,3.13615]
[1736857585304,3.89119,3189.9,3188.6,3.13615]
[1736857585509,3.13538,3189.5,3188.6,3.13615]
[1736857585675,0.03456863,3189.4,3188.6,3.13615]
[1736857585871,0.03456863,3189.4,3188.7,0.3452912]
[1736857586811,0.7563,3190.5,3188.8,0.8152]
[1736857587012,0.7563,3190.5,3189.0,3.63516472]
[1736857587013,3.89067,3190.5,3189.0,3.63516472]
[1736857587210,0.7563,3190.5,3189.2,0.8152]
[1736857587411,0.7563,3190.5,3189.4,3.13533]
[1736857587717,3.89024,3190.9,3189.6,3.13516]
[1736857587899,0.7563,3190.9,3190.1,3.13464]
[1736857588105,0.7563,3190.9,3190.2,0.03134244]
[1736857588414,0.7563,3190.9,3190.2,3.16590244]
[1736857588976,0.7563,3190.9,3190.3,0.03134165]
[1736857589207,0.7563,3190.9,3189.8,3.13499]
[1736857589509,0.1063,3190.9,3190.0,3.13471]
[1736857590231,0.1063,3190.9,3189.9,0.42668404]
[1736857590232,0.1063,3190.9,3190.1,3.13464]
[1736857590897,0.1063,3190.9,3189.9,0.42668404]
[1736857591097,0.03456863,3191.2,3190.0,3.16609011]
[1736857591406,3.16818863,3191.2,3190.2,3.13452]
[1736857591609,3.66973335,3191.2,3189.7,0.8152]
[1736857591809,3.13403,3190.8,3189.8,3.13494]
[1736857592008,3.1342,3190.6,3189.7,0.8152]
[1736857592210,0.03456863,3190.5,3189.8,0.395036]
[1736857592410,0.7978,3190.7,3189.8,3.530006]
[1736857592592,0.7978,3190.7,3189.9,0.03134553]
[1736857592794,3.93191,3190.7,3189.9,0.03134553]
[1736857593089,0.7978,3190.7,3189.9,0.03134553]
[1736857593311,0.7978,3190.7,3190.0,0.35613515]
[1736857593835,0.7978,3190.7,3189.9,3.13487]
[1736857594107,0.7978,3190.7,3190.0,3.16603277]
[1736857594778,0.7978,3190.7,3190.1,3.1346]
[1736857595924,0.83236863,3191.0,3189.8,0.03134105]
[1736857596101,0.7978,3191.0,3189.8,0.03134073]
[1736857596412,0.7978,3191.0,3190.3,3.13446]
[1736857596616,0.7978,3191.0,3190.3,3.447906]
[1736857597135,0.7978,3191.0,3190.5,3.13429]
[1736857598296,0.7978,3191.0,3190.4,0.03134027]
[1736857598498,0.7978,3191.5,3190.6,3.13413]
[1736857598802,0.7978,3191.5,3190.7,0.03133791]
[1736857599405,0.7978,3191.5,3190.7,0.3478847]
[1736857599610,0.7978,3191.5,3190.8,3.13399]
[1736857599936,0.7978,3191.5,3190.4,3.92555]
[1736857599937,0.7978,3191.5,3190.9,3.16516537]
[1736857600513,0.7978,3191.5,3190.9,3.13383]
[1736857601837,0.7978,3191.5,3190.4,0.7912]
[1736857602012,0.03456863,3191.4,3190.0,0.7912]
[1736857602197,3.13363,3191.2,3190.3,3.1345]
[1736857602530,0.03456863,3191.1,3190.4,3.13439]
[1736857602897,0.03456863,3191.1,3190.3,0.31345]
[1736857603403,0.7978,3191.3,3190.4,3.1344]
[1736857603598,0.7978,3191.3,3190.0,3.92596]
[1736857603599,0.7978,3191.3,3190.5,0.03134009]
[1736857603822,0.03456863,3191.2,3190.0,0.82253823]
[1736857604014,0.7978,3191.3,3190.5,3.13424]
[1736857604211,0.7978,3191.3,3190.6,3.13417]
[1736857604412,0.7978,3191.3,3190.7,3.47884397]
[1736857604924,0.8202,3191.6,3190.9,3.13387]
[1736857605136,0.8202,3191.6,3190.9,3.13382]
[1736857605439,0.8202,3191.6,3190.7,1.15955397]
[1736857605617,0.8202,3191.6,3191.0,3.13376]
[1736857605820,0.8202,3191.6,3191.1,3.4783994]
[1736857606019,0.8202,3191.6,3191.2,3.13353]
[1736857606229,3.63516472,3192.3,3191.2,3.16486205]
[1736857606548,0.85476863,3192.2,3191.4,3.13341]
[1736857606838,0.85476863,3192.2,3191.4,3.446751]
[1736857607432,0.85476863,3192.2,3191.4,0.313341]
[1736857607647,3.13283,3192.0,3191.0,3.13377]
[1736857607848,0.85476863,3192.2,3190.7,1.15954874]
[1736857607849,0.03456863,3191.9,3190.7,1.15954874]
[1736857608169,0.03456863,3192.1,3191.1,3.13363]
[1736857608575,0.03456863,3192.1,3190.8,3.13401]
[1736857608576,0.03456863,3192.1,3191.2,3.13361]